[Event "Tata Steel-A 79th"]
[Site "Wijk aan Zee"]
[Date "2017.01.21"]
[Round "7"]
[White "Karjakin, Sergey"]
[Black "Aronian, Levon"]
[Result "1-0"]
[ECO "C24"]
[WhiteElo "2785"]
[BlackElo "2780"]
[Annotator "ChessBase II"]
[PlyCount "115"]
[EventDate "2017.01.14"]
[EventType "tourn"]
[EventRounds "13"]
[EventCountry "NED"]
[EventCategory "21"]
[SourceTitle "CBM 177"]
[Source "ChessBase"]
[SourceDate "2017.03.16"]
[SourceVersion "1"]
[SourceVersionDate "2017.03.16"]
[SourceQuality "1"]
[TimeControl "40/6000+30:20/3000+30:900+30"]

1. e4 {[%emt 0:00:00]} e5 {[%emt 0:00:58]} 2. Nf3 {[%emt 0:00:00]} Nc6 {
[%emt 0:00:05]} 3. Bc4 {[%emt 0:00:00]} Bc5 {[%emt 0:00:06]} 4. O-O {[%emt 0:
00:06]} Nf6 {[%emt 0:00:03]} 5. d3 {[%emt 0:00:05]} O-O {[%emt 0:00:07]} 6. h3
{[%emt 0:00:04]} d5 {[%emt 0:00:05]} 7. exd5 {[%emt 0:00:10]} Nxd5 {[%emt 0:00:
04]} 8. Re1 {[%emt 0:01:29]} Be6 {[%emt 0:00:43]} 9. c3 {[%emt 0:04:20]} (9.
Nbd2 f6 10. Nb3 Bb6 11. d4 Bf7 12. dxe5 Nxe5 13. Nxe5 fxe5 14. Bxd5 Bxd5 15.
Be3 c6 16. Qe2 Qh4 17. Nd2 Rf6 18. Qg4 Qxg4 19. hxg4 Ba5 20. a3 Bxd2 21. Bxd2
e4 22. Be3 a5 23. a4 h6 24. Reb1 Rg6 25. b4 axb4 26. Rxb4 c5 27. Bxc5 Rxg4 28.
Be3 Rg6 29. a5 Rc8 30. Rd1 Rc4 31. Rxc4 Bxc4 32. Rd7 Ba6 33. Bd4 Rg5 34. c4
Bxc4 35. Rxb7 e3 36. Bxe3 Rxg2+ 37. Kxg2 Bd5+ 38. Kg3 Bxb7 {Van Foreest,J 
(2578)-Bachmann,A (2642) Teplice 2016 1/2-1/2}) 9... Bb6 {[%emt 0:04:09]} 10.
Bb3 {[%emt 0:08:40]} f6 {[%emt 0:13:31]} 11. d4 {[%emt 0:09:21]} Bf7 {[%emt 0:
00:26]} 12. dxe5 {[%emt 0:08:39]} Nxe5 {[%emt 0:00:34]} 13. Bxd5 {[%emt 0:02:
59]} Bxd5 {[%emt 0:03:42]} 14. Nxe5 {[%emt 0:00:15]} fxe5 {[%emt 0:00:52]} 15.
Be3 {[%emt 0:00:06]} Bc6 {[%emt 0:08:05]} 16. Nd2 {[%emt 0:01:38]} Qf6 {
[%emt 0:04:18]} 17. Qe2 {[%emt 0:02:22]} Qg6 {[%emt 0:02:13]} 18. f3 {[%emt 0:
02:35]} Rad8 {[%emt 0:02:57]} 19. Bxb6 {[%emt 0:03:36]} axb6 {[%emt 0:02:32]}
20. Ne4 {[%emt 0:02:03]} Rf4 {[%emt 0:03:37]} 21. Rad1 {[%emt 0:02:03]} Rdf8 {
[%emt 0:04:24]} 22. Qc4+ {[%emt 0:01:25]} Kh8 {[%emt 0:01:25]} 23. Kh2 {
[%emt 0:00:19]} h6 {[%emt 0:01:22]} 24. Rd2 {[%emt 0:01:15]} Kh7 {[%emt 0:02:
03]} 25. Qd3 {[%emt 0:03:52]} Kh8 {[%emt 0:16:12]} 26. Rde2 {[%emt 0:04:52]}
Qe6 {[%emt 0:13:26]} 27. b3 {[%emt 0:03:33]} R4f7 {[%emt 0:00:49]} 28. Qe3 {
[%emt 0:10:48]} Re7 {[%emt 0:02:25]} 29. Qf2 {[%emt 0:00:21]} Qd5 {[%emt 0:12:
22]} 30. Re3 {[%emt 0:03:45]} Qa5 {[%emt 0:01:20]} 31. Qb2 {[%emt 0:02:09]}
Rfe8 {[%emt 0:03:15]} 32. c4 {[%emt 0:03:39]} Bd7 {[%emt 0:07:39]} 33. Nc3 {
[%emt 0:08:38]} c6 {[%emt 0:00:25]} 34. Ne4 {[%emt 0:00:23]} Re6 {[%emt 0:00:
40]} 35. Rd1 {[%emt 0:03:25]} Bc8 {[%emt 0:00:32]} 36. b4 {[%emt 0:01:12]} Qa8
{[%emt 0:00:21]} 37. Nd6 {[%emt 0:00:53]} R8e7 {[%emt 0:00:04]} 38. Red3 {
[%emt 0:02:06]} Rd7 {[%emt 0:01:06]} 39. Qc2 {[%emt 0:00:35]} Ree7 {[%emt 0:00:
29]} 40. Qf2 {[%emt 0:00:00]} Qb8 {[%emt 0:00:32]} 41. Qxb6 {[%emt 0:03:00]} e4
{[%emt 0:00:50]} 42. fxe4 {[%emt 0:01:13]} Rxe4 {[%emt 0:01:09]} 43. Qf2 {
[%emt 0:04:08]} Kg8 {[%emt 0:01:28]} 44. Qg3 {[%emt 0:04:14]} Ree7 {[%emt 0:00:
15]} 45. c5 {[%emt 0:00:24]} Qc7 {[%emt 0:00:58]} 46. Nf5 {[%emt 0:04:12]}
Qxg3+ {[%emt 0:00:07]} 47. Rxg3 {[%emt 0:00:05]} Rf7 {[%emt 0:00:08]} 48. Nxh6+
{[%emt 0:00:10]} Kh7 {[%emt 0:02:15]} 49. Nxf7 {[%emt 0:00:09]} Rxd1 {[%emt 0:
00:04]} 50. Re3 {[%emt 0:01:24]} Bf5 {[%emt 0:00:13]} 51. Nd6 {[%emt 0:02:05]}
Bb1 {[%emt 0:01:33]} 52. a4 {[%emt 0:00:12]} Bc2 {[%emt 0:03:31]} 53. a5 {
[%emt 0:02:24]} Rb1 {[%emt 0:01:16]} 54. Rc3 {[%emt 0:00:28]} Bb3 {[%emt 0:02:
34]} 55. Nxb7 {[%emt 0:01:03]} Bd5 {[%emt 0:00:10]} 56. a6 {[%emt 0:00:23]}
Rxb4 {[%emt 0:00:11]} 57. Ra3 {[%emt 0:00:10]} Rb2 {[%emt 0:00:04]} 58. h4 {
[%emt 0:00:47]} 1-0